lending/lending_fUSD_20240207
["ID","MTS","AMOUNT","RATE_DAILY","PERIOD"]
[313430361,1707339037140,-256.327724,0.000476,71]
[313430362,1707339037150,-500.0,0.000476,24]
[313430363,1707339037159,-150.0,0.000476,24]
[313430364,1707339037168,-200.0,0.000476,24]
[313430365,1707339037177,-5578.369042,0.000476,50]
[313430366,1707339037186,-302.182049,0.000476,11]
[313430367,1707339037196,-1722.933095,0.000476,21]
[313430368,1707339037205,-200.0,0.000476,2]
[313430369,1707339037214,-237.576056,0.000476,26]
[313430370,1707339037223,-237.576057,0.000476,26]
[313430371,1707339037233,-237.576057,0.000476,26]
[313430372,1707339037242,-237.576056,0.000476,26]
[313430373,1707339037251,-150.0,0.000476,18]
[313430374,1707339037261,-1983.731131,0.000476,26]
[313430375,1707339037270,-1983.731131,0.000476,26]
[313430376,1707339037279,-1983.731131,0.000476,26]
[313430377,1707339037288,-1983.731131,0.000476,26]
[313430378,1707339037298,-185.5271172,0.00047638,2]
[313430379,1707339037307,-500.0,0.00047671,40]
[313430380,1707339037317,-650.0,0.00047671,120]
[313430381,1707339037327,-650.0,0.00047671,120]
[313430382,1707339037336,-650.0,0.00047671,120]
[313430383,1707339037345,-650.0,0.00047671,120]
[313430385,1707339037355,-650.0,0.00047671,120]
[313430387,1707339037364,-650.0,0.00047671,120]
[313430388,1707339037374,-650.0,0.00047671,120]
[313430390,1707339037383,-650.0,0.00047671,120]
[313430392,1707339037393,-231.98419876,0.00047671,120]
[313430394,1707339037403,-200.0,0.0004768,7]
[313430396,1707339037413,-200.0,0.0004768,7]
[313430399,1707339037423,-200.0,0.0004768,7]
[313430401,1707339037433,-200.0,0.0004768,7]
[313430403,1707339037442,-200.0,0.0004768,7]
[313430405,1707339037452,-200.0,0.0004768,7]
[313430406,1707339037461,-200.0,0.0004768,7]
[313430407,1707339037471,-200.0,0.0004768,7]
[313430408,1707339037480,-224.48768462,0.00047688,4]
[313430410,1707339037490,-246.54838656,0.00047688,2]
[313430411,1707339037499,-60247.42666596,0.00047689,2]
[313430413,1707339037507,-165.45609498,0.0004769,30]
[313430414,1707339037516,-201.0,0.0004769,30]
[313430416,1707339037526,-211.0,0.0004769,30]
[313430418,1707339037535,-241.0,0.0004769,30]
[313430420,1707339037544,-214.0,0.0004769,30]
[313430422,1707339037553,-208.0,0.0004769,30]
[313430424,1707339037562,-175.0,0.0004769,30]
[313430426,1707339037571,-202.0,0.0004769,30]
[313430428,1707339037580,-239.0,0.0004769,30]
[313430430,1707339037589,-200.0,0.0004769,30]
[313430432,1707339037598,-200.0,0.0004769,30]
[313430434,1707339037607,-1000.0,0.0004769,30]
[313430435,1707339037617,-755.0,0.0004769,2]
[313430437,1707339037626,-500.0,0.000477,24]
[313430439,1707339037635,-315.46095445,0.00047705,23]
[313430441,1707339037644,-166.0,0.00047763,2]
[313430443,1707339037654,-255.37,0.0004777,30]
[313430445,1707339037663,-1000.0,0.000478,30]
[313430447,1707339037672,-500.0,0.000478,24]
[313430448,1707339037681,-150.0,0.000478,19]
[313430449,1707339037690,-961.31,0.00047808,2]
[313430450,1707339037699,-196.755464,0.000479,38]
[313430451,1707339037708,-500.0,0.000479,24]
[313430452,1707339037717,-1300.0,0.000479,17]
[313430453,1707339037725,-500.0,0.00047945,3]
[313430454,1707339037735,-1157.33,0.00047945,120]
[313430455,1707339037744,-1157.33,0.00047945,120]
[313430456,1707339037753,-1157.33,0.00047945,120]
[313430457,1707339037762,-1157.33,0.00047945,120]
[313430458,1707339037772,-1157.33,0.00047945,120]
[313430459,1707339037781,-1157.33,0.00047945,120]
[313430460,1707339037790,-1157.33,0.00047945,120]
[313430461,1707339037798,-1157.33,0.00047945,120]
[313430462,1707339037807,-1157.33,0.00047945,120]
[313430463,1707339037816,-1157.33,0.00047945,120]
[313430464,1707339037825,-1157.33,0.00047945,120]
[313430465,1707339037834,-1157.33,0.00047945,120]
[313430466,1707339037842,-1157.33,0.00047945,120]
[313430467,1707339037851,-1157.33,0.00047945,120]
[313430468,1707339037860,-1157.33,0.00047945,120]
[313430469,1707339037869,-1157.33,0.00047945,120]
[313430470,1707339037878,-1157.33,0.00047945,120]
[313430471,1707339037887,-1157.33,0.00047945,120]
[313430472,1707339037896,-1157.33,0.00047945,120]
[313430473,1707339037906,-1157.33,0.00047945,120]
[313430475,1707339037915,-1157.33,0.00047945,120]
[313430477,1707339037924,-1157.33,0.00047945,120]
[313430478,1707339037933,-1157.33,0.00047945,120]
[313430479,1707339037942,-1157.48971758,0.00047945,120]
[313430480,1707339037951,-151.72,0.00047945,2]
[313430481,1707339037960,-500.0,0.00047945,30]
[313430483,1707339037968,-315.46095445,0.00047948,24]
[313430484,1707339037977,-185.5271172,0.00047965,2]
[313430486,1707339037989,-200.0,0.00047987,9]
[313430487,1707339037998,-200.0,0.00047987,10]
[313430488,1707339038008,-21093.98,0.00047998,20]
[313430489,1707339038017,-100000.0,0.00048,38]
[313430490,1707339038026,-907.8382102,0.00048,30]
[313430491,1707339038036,-5000.0,0.00048,20]
[313430492,1707339038045,-1127.80661104,0.00048,14]
[313430493,1707339038055,-3300.0,0.00048,30]
[313430494,1707339038066,-69999.999999,0.00048,9]
[313430495,1707339038076,-801.86898587,0.00048,4]
[313430496,1707339038085,-5000.0,0.00048,25]
[313430497,1707339038094,-2000.0,0.00048,30]
[313430498,1707339038103,-3049.0,0.00048,30]
[313430499,1707339038114,-8765.12684343,0.00048,4]
[313430500,1707339038124,-300.0,0.00048,49]
[313430501,1707339038133,-300.0,0.00048,73]
[313430502,1707339038143,-1000.0,0.00048,57]
[313430503,1707339038153,-200.0,0.00048,30]
[313430504,1707339038163,-500.0,0.00048,24]
[313430505,1707339038173,-5728.369041,0.00048,52]
[313430506,1707339038184,-150.0,0.00048,19]
[313430507,1707339038203,-1146.99074,0.0004801,40]
[313430508,1707339038225,-185.5271172,0.00048097,2]
[313430509,1707339038262,-433.59220125,0.000481,30]
[313430510,1707339038302,-500.0,0.000481,24]
[313430511,1707339038339,-200.0,0.000481,25]
[313430512,1707339038349,-540.36067831,0.0004813,2]
[313430513,1707339038358,-315.46095445,0.00048191,24]
[313430514,1707339038367,-284.0,0.000482,30]
[313430515,1707339038376,-1000.0,0.000482,2]
[313430516,1707339038386,-500.0,0.000482,24]
[313430517,1707339038395,-150.0,0.000482,19]
[313430518,1707339038404,-500.0,0.00048219,45]
[313430519,1707339038414,-867.34724701,0.00048229,5]
[313430520,1707339038423,-1202.64785963,0.0004824,4]
[313430521,1707339038432,-151.0,0.00048251,2]
[313430522,1707339038441,-754.0755324,0.000483,13]
[313430523,1707339038450,-500.0,0.000483,24]
[313430524,1707339038460,-160.30037325,0.00048367,24]
[313430525,1707339038469,-500.0,0.000484,24]
[313430526,1707339038478,-150.0,0.000484,19]
[313430527,1707339038491,-315.46095445,0.00048434,24]
[313430528,1707339038501,-5000.0,0.000485,25]
[313430529,1707339038510,-1000.0,0.000485,30]
[313430530,1707339038520,-1423.23864624,0.000485,2]
[313430531,1707339038530,-1400.0,0.000485,30]
[313430532,1707339038540,-161.09185122,0.000485,120]
[313430533,1707339038549,-1177.348362,0.000485,13]
[313430534,1707339038559,-500.0,0.000485,25]
[313430535,1707339038569,-749.79380543,0.00048551,2]
[313430536,1707339038578,-951.6,0.00048576,2]
[313430537,1707339038587,-173.26,0.00048599,2]
[313430538,1707339038596,-300.0,0.000486,26]
[313430539,1707339038606,-500.0,0.000486,25]
[313430540,1707339038615,-200.0,0.000486,26]
[313430541,1707339038624,-150.0,0.000486,19]
[313430542,1707339038633,-153.44669119,0.00048617,39]
[313430543,1707339038643,-179.73596922,0.00048646,2]
[313430544,1707339038652,-2828.0,0.00048656,2]
[313430545,1707339038662,-2518.0,0.00048656,2]
[313430546,1707339038671,-315.46095445,0.00048676,24]
[313430547,1707339038681,-1359.0,0.000487,117]
[313430548,1707339038690,-500.0,0.000487,25]
[313430549,1707339038699,-500.0,0.00048767,50]
[313430550,1707339038709,-249.72,0.00048798,2]
[313430551,1707339038718,-431.68,0.000488,30]
[313430552,1707339038727,-30287.965019,0.000488,30]
[313430553,1707339038738,-500.0,0.000488,25]
[313430554,1707339038747,-150.0,0.000488,20]
[313430555,1707339038757,-205.0,0.00048865,36]
[313430556,1707339038766,-994.48407,0.000489,25]
[313430557,1707339038776,-1600.0,0.000489,17]
[313430558,1707339038785,-315.46095445,0.00048919,25]
[313430559,1707339038795,-205.668,0.0004895,120]
[313430560,1707339038805,-205.668,0.0004895,120]
[313430561,1707339038814,-185.5271172,0.00048966,2]
[313430562,1707339038824,-154.08649709,0.00048987,30]
[313430563,1707339038834,-200.0,0.00048987,11]
[313430564,1707339038843,-200.0,0.00048987,12]
[313430565,1707339038853,-150.0,0.00048999,8]
[313430566,1707339038863,-150.0,0.00048999,8]
[313430567,1707339038872,-92985.77332407,0.00049,39]
[313430572,1707339039425,-7014.22667593,0.00049,39]
[313430573,1707339039436,-15097.17284658,0.00049,13]
[313430574,1707339039448,-261.54815297,0.00049,13]
[313430575,1707339039460,-858.75982976,0.00049,13]
[313430576,1707339039472,-689.08256078,0.00049,13]
[313430577,1707339039494,-1101.70249577,0.00049,13]
[313430578,1707339039506,-2123.88778304,0.00049,13]
[313430579,1707339039515,-1000.0,0.00049,14]
[313430580,1707339039526,-6810.26255174,0.00049,30]
[313430581,1707339039535,-250.0,0.00049,30]
[313430582,1707339039545,-4883.09966522,0.00049,7]
[313430583,1707339039577,-3394.12477724,0.00049,7]
[313430584,1707339039589,-1320.21820552,0.00049,7]
[313430597,1707339041207,-270.5502,0.00023507,2]
[313430598,1707339041219,-954.92357789,0.00023507,2]
[313430599,1707339041229,-293.28463957,0.00023507,2]
[313430600,1707339041240,-209.0,0.00032164,2]
[313430601,1707339041249,-187.91575215,0.000433,3]
[313430602,1707339041261,-23014.49146974,0.000433,3]
[313430603,1707339041274,-823.08541625,0.000433,3]
[313430604,1707339041285,-10766.82747097,0.000433,3]
[313430605,1707339041306,-7978.94377898,0.000433,3]
[313430606,1707339041318,-34032.22592803,0.000433,3]
[313430607,1707339041330,-825.55811059,0.000433,3]
[313430608,1707339041342,-883.52,0.000433,3]
[313430609,1707339041353,-488.50968646,0.000433,3]
[313430610,1707339041365,-762.20107604,0.000433,3]
[313430611,1707339041376,-1516.4729894,0.000433,3]
[313430612,1707339041469,-1029.27,0.000433,3]
[313430613,1707339041481,-740.80057918,0.000433,3]
[313430614,1707339041494,-679.08727755,0.000433,3]
[313430615,1707339041522,-543.00344407,0.000433,3]
[313430616,1707339041739,-724.10243275,0.000433,3]
[313430617,1707339041750,-643.62017625,0.000433,3]
[313430618,1707339041761,-3155.5928204,0.000433,3]
[313430619,1707339041781,-398.60398175,0.000433,3]
[313430620,1707339042411,-753.39095171,0.000433,3]
[313430622,1707339042424,-768.73276211,0.000433,3]
[313430623,1707339042436,-2358.50063164,0.000433,3]
[313430624,1707339042449,-1689.95371135,0.000433,3]
[313430625,1707339042461,-387.72733961,0.000433,3]
[313430636,1707339042738,-613.91930401,0.000433,3]
[313430637,1707339042750,-7058.63742596,0.000433,3]
[313430638,1707339042773,-353.18145676,0.000433,3]
[313430639,1707339042784,-6623.61390974,0.000433,3]
[313430640,1707339042800,-632.2280834,0.000433,3]
[313430641,1707339042811,-800.32223353,0.000433,3]
[313430642,1707339042849,-755.66169452,0.000433,3]
[313430643,1707339042860,-348.64566677,0.000433,3]
[313430644,1707339042872,-176514.53013985,0.000433,3]
[313430645,1707339042883,-2179.37507382,0.000433,3]
[313430646,1707339042895,-698.96864546,0.000433,3]
[313430647,1707339042907,-973.36177193,0.000433,3]
[313430649,1707339042919,-489.47653646,0.000433,3]
[313430651,1707339042930,-3426.21703301,0.000433,3]
[313430653,1707339042941,-33572.07961059,0.000433,3]
[313430660,1707339043586,-282.39511157,0.00023273,2]
[313430661,1707339043596,-400.33782705,0.000433,3]
[313430662,1707339043607,-1437.75653788,0.000433,3]
[313430663,1707339043619,-387.74629481,0.000433,3]
[313430664,1707339043701,-360.34016643,0.000433,3]
[313430665,1707339043712,-1510.56320452,0.000433,3]
[313430666,1707339043724,-627.09476605,0.000433,3]
[313430667,1707339043737,-1002.07257041,0.000433,3]
[313430668,1707339043748,-44075.38910951,0.000433,3]
[313430669,1707339043770,-2729.11508882,0.000433,3]
[313430670,1707339043781,-3078.22787811,0.000433,3]
[313430671,1707339043793,-2457.09624937,0.000433,3]
[313430672,1707339043808,-19127.78859375,0.000433,3]
[313430673,1707339043819,-1321.86465,0.000433,3]
[313430674,1707339043838,-455.39861255,0.000433,3]
[313430675,1707339043849,-13035.327277,0.000433,3]
[313430676,1707339043860,-825.45157541,0.000433,3]
[313430677,1707339043879,-1691.86502952,0.000433,3]
[313430678,1707339043891,-301068.02534131,0.000433,3]
[313430679,1707339043902,-642.55932315,0.000433,3]
[313430680,1707339043924,-544.13112207,0.000433,3]
[313430681,1707339043938,-846.78610908,0.000433,3]
[313430682,1707339043950,-744.5,0.000433,3]
[313430683,1707339043961,-497.86715934,0.000433,3]
[313430684,1707339043974,-795.35665588,0.000433,3]
[313430685,1707339043986,-5015.18568404,0.000433,3]
[313430686,1707339043996,-1376.23655189,0.00045592,2]
[313430687,1707339044008,-326.44289641,0.00045592,2]
[313430688,1707339044018,-1702.6794483,0.00047696,2]
[313430689,1707339044027,-253.256249,0.00048219,14]
[313430690,1707339044037,-359.23189461,0.000486,44]
[313430691,1707339044050,-158.12132899,0.000486,44]
[313430692,1707339044063,-517.3532236,0.00048923,45]
[313430693,1707339044072,-1703.70044766,0.00049,7]
[313430702,1707339045590,-249.39768581,0.00032163,4]
[313430703,1707339045599,-343.35061113,0.00043299,4]
[313430704,1707339045608,-232.64756384,0.00043299,4]
[313430706,1707339046056,-185.0802906,0.00043299,4]
[313430707,1707339046068,-156.68878088,0.00043299,4]
[313430708,1707339046078,-414.32805963,0.00043299,4]
[313430709,1707339046087,-139.70994431,0.00047807,2]
[313430710,1707339046099,-10.30005569,0.00047807,2]
[313430711,1707339046109,-729.87830361,0.00047807,2]
[313430712,1707339046121,-292.6845129,0.00047807,2]
[313430713,1707339046132,-1228.1267823,0.00047807,2]
[313430714,1707339046145,-1059.99952802,0.00047807,2]
[313430715,1707339046154,-931.89932353,0.00049,7]
[313430716,1707339046163,-769.37630308,0.00049,30]
[313430717,1707339046175,-829.59232231,0.00049,30]
[313430718,1707339046187,-1967.11957361,0.00049,30]
[313430719,1707339046294,-544.43127153,0.00049,30]
[313430720,1707339046307,-1209.80479582,0.00049,30]
[313430721,1707339046318,-769.99837277,0.00049,30]
[313430722,1707339046330,-40454.59173936,0.00049,30]
[313430736,1707339254020,1787.99442547,0.00012,30]
[313430737,1707339254044,5504.1173045,0.00012,30]
[313430773,1707339836021,-155.41345092,0.00022798,2]
[313430774,1707339836041,-1224.7436,0.000228,2]
[313430775,1707339836059,-2500.0,0.000228,2]
[313430776,1707339836078,-119.84294908,0.00022897,2]
[313430777,1707339837512,-1105.63082881,0.00022897,2]
[313430778,1707339837531,-300.0,0.00022897,2]
[313430779,1707339837549,-1251.1161454,0.00022898,2]
[313430780,1707339837568,-157.54347207,0.00022898,2]
[313430781,1707339837588,-401.96625764,0.00022898,2]
[313430782,1707339837607,-226.08206007,0.00022898,2]
[313430783,1707339837630,-488.92621759,0.00022898,2]
[313430784,1707339837651,-68.73501842,0.00022899,2]
[313430785,1707339838487,-4000.0,0.00022899,2]
[313430786,1707339839502,-4000.0,0.00022899,2]
[313430788,1707339849356,-3000.0,0.00022899,2]
[313430791,1707339862948,-800.0,0.00022899,2]
[313430800,1707340017510,-83989.6422,0.000228,2]
[313430801,1707340017532,-26231.05960082,0.00022899,2]
[313430802,1707340017555,-243797.82,0.000229,2]
[313430803,1707340017587,-126575.60543931,0.00023,2]
[313430804,1707340017610,-1061937.30579011,0.00023,2]
[313430807,1707340031999,1616.5033,0.000228,2]
[313430810,1707340050939,500.0,0.00022999,2]
[313430811,1707340050966,500.0,0.00022999,2]
[313430812,1707340051010,500.0,0.00022999,2]
[313430813,1707340051036,500.0,0.00022999,2]
[313430814,1707340051071,500.0,0.00022999,2]
[313430815,1707340051107,500.0,0.00022999,2]
[313430816,1707340051141,500.0,0.00022999,2]
[313430817,1707340051169,352.06366976,0.00022999,2]
[313430886,1707340231883,-1381.7786119,0.000228,2]
[313430888,1707340231895,-1118.2213881,0.000228,2]
[313430889,1707340231905,-447.50959429,0.00023349,2]
[313430890,1707340231913,-160.30037325,0.0002447,2]
[313430891,1707340231922,-480.68222045,0.0002457,2]
[313430892,1707340231934,-833.79793316,0.0002457,2]
[313430894,1707340231960,-222162.09734639,0.0002457,2]
[313430896,1707340231970,-252.1938,0.0002457,2]
[313430897,1707340231979,-150.0,0.00024667,2]
[313430898,1707340231990,-150.0,0.00024667,2]
[313430899,1707340232001,-197.83322609,0.00024668,2]
[313430900,1707340232011,-500.0,0.00024668,2]
[313430901,1707340232021,-155.41677054,0.00024668,2]
[313430902,1707340232030,-3258.21589851,0.00024668,2]
[313430903,1707340232040,-364.31774808,0.00024668,2]
[313430904,1707340232049,-278.06640714,0.00024668,2]
[313430905,1707340232060,-247.45142877,0.00024668,2]
[313430906,1707340232070,-155.57615162,0.00024668,2]
[313430907,1707340232080,-13977.17041143,0.00024668,2]
[313430908,1707340232089,-187.63619304,0.00024669,2]
[313430909,1707340232099,-280.11299096,0.00024669,2]
[313430910,1707340232109,-1858.16483209,0.00024669,2]
[313430911,1707340232120,-6372.87995348,0.00024669,2]
[313430912,1707340232130,-1735.6514,0.0002467,2]
[313430913,1707340232140,-93293.2253,0.0002467,2]
[313430914,1707340232151,-2037.05,0.0002467,2]
[313430915,1707340232162,-447.50959423,0.00025754,2]
[313430916,1707340232174,-155.41345088,0.00027148,2]
[313430917,1707340232184,-865.83,0.00027148,2]
[313430918,1707340232194,-1565.84,0.00027659,2]
[313430919,1707340232205,-381.5,0.00027659,2]
[313430920,1707340232215,-499.99,0.00027659,2]
[313430921,1707340232226,-447.50959423,0.00028158,2]
[313430922,1707340232236,-205.0,0.00029164,2]
[313430923,1707340232252,-447.50959423,0.00030563,2]
[313430924,1707340232262,-157.23,0.00031014,2]
[313430925,1707340232272,-1795.11,0.00031164,2]
[313430926,1707340232285,-155.41345088,0.00031498,2]
[313430927,1707340232295,-2000.0,0.00031896,2]
[313430928,1707340232305,-185.67,0.0003209,2]
[313430929,1707340232315,-178.87,0.00032245,2]
[313430930,1707340232324,-10995.0,0.000326,2]
[313430931,1707340232334,-200.0,0.00032785,2]
[313430932,1707340232343,-221.13,0.000328,2]
[313430933,1707340232353,-1125.0,0.000329,2]
[313430934,1707340232362,-447.50959423,0.00032968,4]
[313430935,1707340232372,-150.0,0.00032994,2]
[313430936,1707340232382,-30316.5436,0.00033059,2]
[313430937,1707340232393,-3638.19010386,0.00033159,14]
[313430938,1707340232402,-14000.42,0.00033159,2]
[313430939,1707340232412,-186.11,0.0003319,2]
[313430940,1707340232422,-162.46,0.00033352,10]
[313430941,1707340232432,-155.18,0.0003354,2]
[313430942,1707340232443,-153.69,0.000337,2]
[313430943,1707340232453,-153.69,0.000337,2]
[313430944,1707340232463,-153.69,0.000337,2]
[313430945,1707340232472,-7873.5744595,0.0003372,10]
[313430946,1707340232482,-393.67872298,0.0003372,10]
[313430947,1707340232495,-777.38981459,0.0003372,10]
[313430948,1707340232506,-20697.81664183,0.0003372,10]
[313430949,1707340232515,-1034.89083209,0.0003372,10]
[313430950,1707340232524,-210.91737806,0.00033839,6]
[313430951,1707340232534,-200.99223256,0.00033839,7]
[313430952,1707340232543,-157.23,0.00033882,2]
[313430953,1707340232553,-152.72997728,0.000339,2]
[313430954,1707340232562,-152.72997726,0.000339,2]
[313430955,1707340232572,-737.24516012,0.000349,2]
[313430956,1707340232582,-737.24515995,0.000349,2]
[313430957,1707340232592,-737.24515995,0.000349,2]
[313430958,1707340232602,-737.24515995,0.000349,2]
[313430959,1707340232612,-737.24515995,0.000349,2]
[313430960,1707340232622,-737.24515995,0.000349,2]
[313430961,1707340232632,-737.24515995,0.000349,2]
[313430962,1707340232642,-737.24515995,0.000349,2]
[313430963,1707340232652,-17252.0,0.00035,7]
[313430964,1707340232662,-155.18,0.00035288,2]
[313430965,1707340232672,-447.50959423,0.00035372,8]
[313430966,1707340232682,-737.24515995,0.00035781,2]
[313430967,1707340232691,-155.41345088,0.00035848,2]
[313430968,1707340232701,-185.67,0.000362,2]
[313430969,1707340232710,-157.23,0.00036749,2]
[313430970,1707340232719,-737.24515995,0.0003736,2]
[313430971,1707340232729,-447.50959423,0.00037777,11]
[313430972,1707340232737,-5000.0,0.000378,3]
[313430973,1707340232751,-212.74226634,0.000378,8]
[313430974,1707340232760,-17393.9995569,0.0003789,10]
[313430975,1707340232769,-500.0,0.00037899,15]
[313430976,1707340232778,-500.0,0.00037899,15]
[313430977,1707340232787,-500.0,0.00037899,15]
[313430978,1707340232796,-453.62422336,0.00037899,15]
[313430979,1707340232806,-500.0,0.00037899,15]
[313430980,1707340232815,-500.0,0.00037899,15]
[313430981,1707340232824,-500.0,0.00037899,15]
[313430982,1707340232834,-500.0,0.00037899,15]
[313430983,1707340232843,-500.0,0.00037899,15]
[313430984,1707340232852,-500.0,0.00037899,15]
[313430985,1707340232861,-500.0,0.00037899,15]
[313430986,1707340232870,-500.0,0.00037899,15]
[313430987,1707340232879,-500.0,0.00037899,15]
[313430988,1707340232888,-500.0,0.00037899,15]
[313430989,1707340232897,-500.0,0.00037899,15]
[313430990,1707340232906,-500.0,0.00037899,15]
[313430991,1707340232915,-500.0,0.00037899,15]
[313430992,1707340232924,-500.0,0.00037899,15]
[313430993,1707340232933,-640.96844406,0.00037899,15]
[313430994,1707340232943,-500.0,0.00037899,15]
[313430995,1707340232952,-500.0,0.00037899,15]
[313430996,1707340232963,-500.0,0.00037899,15]
[313430997,1707340232972,-500.0,0.00037899,15]
[313430998,1707340232981,-500.0,0.00037899,15]
[313430999,1707340232994,-500.0,0.00037899,15]
[313431000,1707340233003,-500.0,0.00037899,15]
[313431001,1707340233012,-500.0,0.00037899,15]
[313431002,1707340233021,-500.0,0.00037899,15]
[313431003,1707340233030,-500.0,0.00037899,15]
[313431004,1707340233039,-500.0,0.00037899,15]
[313431005,1707340233051,-500.0,0.00037899,15]
[313431006,1707340233060,-500.0,0.00037899,15]
[313431007,1707340233069,-500.0,0.00037899,15]
[313431008,1707340233078,-500.0,0.00037899,15]
[313431009,1707340233087,-500.0,0.00037899,15]
[313431010,1707340233096,-500.0,0.00037899,15]
[313431011,1707340233105,-500.0,0.00037899,15]
[313431012,1707340233114,-500.0,0.00037899,15]
[313431013,1707340233124,-500.0,0.00037899,15]
[313431014,1707340233133,-500.0,0.00037899,15]
[313431015,1707340233142,-500.0,0.00037899,15]
[313431016,1707340233152,-500.0,0.00037899,15]
[313431017,1707340233161,-500.0,0.00037899,15]
[313431018,1707340233170,-500.0,0.00037899,15]
[313431019,1707340233180,-500.0,0.00037899,15]
[313431020,1707340233191,-360.25846423,0.000379,2]
[313431021,1707340233200,-189.87552346,0.000379,2]
[313431022,1707340233209,-339846.63794996,0.000379,2]
[313431023,1707340233228,-1589.57481014,0.000379,2]
[313431024,1707340233247,-1520.15122887,0.000379,2]
[313431025,1707340233262,-2055.44954774,0.000379,2]
[313431026,1707340233273,-8852.24371878,0.000379,2]
[313431027,1707340233285,-2065.45835351,0.000379,2]
[313431028,1707340233297,-6378.12288603,0.000379,2]
[313431029,1707340233309,-662.945,0.000379,2]
[313431030,1707340233320,-322.84270231,0.000379,2]
[313431031,1707340234389,-815.6374002,0.000379,2]
[313431032,1707340234452,-11737.84626998,0.000379,2]
[313431033,1707340234464,-4427.25065042,0.000379,2]
[313431034,1707340234477,-207843.43496106,0.000379,2]
[313431035,1707340234486,-546.71381828,0.000381,2]
[313431036,1707340234497,-153.69,0.000382,3]
[313431037,1707340234506,-153.69,0.000382,3]
[313431038,1707340234517,-153.69,0.000382,3]
[313431040,1707340234527,-151.63,0.00038356,2]
[313431042,1707340234537,-170.61975322,0.0003888,2]
[313431044,1707340234547,-170.61975319,0.0003888,2]
[313431046,1707340234556,-737.24515995,0.00038938,2]
[313431048,1707340234565,-165.1862054,0.00038968,2]
[313431050,1707340234575,-4786.37676202,0.0003897,2]
[313431052,1707340234585,-1076.14,0.00039484,2]
[313431054,1707340234595,-5725.8,0.00039484,2]
[313431056,1707340234604,-2815.2,0.00039484,2]
[313431059,1707340234614,-166.96,0.00039494,2]
[313431062,1707340234623,-212.74226633,0.00039527,9]
[313431065,1707340234634,-157.23,0.00039617,2]
[313431067,1707340234643,-220.0,0.00039794,2]
[313431069,1707340234652,-186.11,0.00039828,2]
[313431071,1707340234662,-447.50959423,0.00040181,14]
[313431072,1707340234671,-155.41345088,0.00040198,2]
[313431074,1707340234680,-185.67,0.0004031,2]
[313431076,1707340234690,-737.24515995,0.00040517,5]
[313431079,1707340234700,-2284.0,0.00040985,2]
[313431080,1707340234710,-19818.306,0.00040985,2]
[313431082,1707340234719,-1745.584,0.00040985,2]
[313431084,1707340234729,-151.63,0.00041096,2]
[313431086,1707340234738,-212.74226633,0.00041254,10]
[313431087,1707340234750,-170.61975319,0.00041452,3]
[313431089,1707340234759,-324.08880532,0.000418,2]
[313431090,1707340234769,-500.0,0.000419,2]
[313431091,1707340234779,-14679.00163838,0.000419,30]
[313431092,1707340234788,-2217.80427165,0.00042,4]
[313431093,1707340234797,-737.24515995,0.00042096,5]
[313431094,1707340234807,-152.72997726,0.00042396,15]
[313431095,1707340234816,-157.23,0.00042484,2]
[313431096,1707340234825,-447.50959423,0.00042586,17]
[313431097,1707340234834,-150.0,0.00042676,30]
[313431098,1707340234844,-153.69,0.000427,4]